[Event "Croatian 1A League 2022"]
[Site "Porec"]
[Date "2022.09.24"]
[Round "1.6"]
[White "Srbis, Jurica"]
[Black "Vernacki, Srdjan"]
[Result "0-1"]
[ECO "E43"]
[WhiteElo "2442"]
[BlackElo "2280"]
[Annotator "TA"]
[PlyCount "138"]
[EventDate "2022.09.24"]
[EventType "team-tourn"]
[EventCountry "CRO"]
[SourceTitle "playchess.com"]
[Source "ChessBase"]
[SourceQuality "1"]
[TimeControl "40/5400+30:1800+30"]

{[%evp 19,138,-25,-25,-41,-54,-140,-134,-139,-110,-118,-116,-118,-110,-111,-106,-116,-99,-116,-121,-164,-130,-135,-105,-99,-100,-96,-97,-159,-97,-149,-84,-127,0,-101,0,-120,-102,-97,-95,-179,-178,-170,-183,-172,-172,-179,-181,-193,-189,-193,-187,-177,-144,-163,-164,-171,-173,-201,-186,-218,-205,-237,-234,-254,-221,-229,-219,-230,-229,-228,-218,-299,-290,-267,-256,-275,-181,-257,-250,-303,-288,-367,-379,-370,-361,-385,-387,-363,-365,-362,-366,-770,-756,-934,-930,-1294,-1114,-1359,-1279,-1559,-1183,-29942,-29941,-7045,-5497,-29974,-29975,-29975,-29976,-29976,-29977,-29977,-29978,-29976,-29976,-29976,-29977,-29977,-29978,-29976,-29977]} 1. d4 {[%emt 0:01:00]} Nf6 {[%emt 0:01:00]} 2. c4 {[%emt 0:00:00]} e6 {[%emt 0:00:00]} 3. Nc3 {[%emt 0:00:00]} Bb4 {[%emt 0:00:00]} 4. e3 {[%emt 0:00:30]} b6 {[%emt 0:01:30]} 5. Nf3 {[%emt 0:05:30]} Bb7 {[%emt 0:00:30]} 6. Bd3 {[%emt 0:00:30]} O-O {[%emt 0:00:30]} 7. O-O {[%emt 0:00:30]} c5 {[%emt 0:02:30]} 8. a3 {[%emt 0:09:30]} Bxc3 {[%emt 0:00:30]} 9. bxc3 {[%emt 0:00:30]} Ne4 {[%emt 0:04:30]} 10. Qc2 {[%emt 0:09:30]} f5 $1 {[%emt 0:00:30]} 11. Ne1 {[%emt 0:21:30] [#] E43: Nimzo-Indian: Rubinstein: 4...b6.} Nc6 $146 {[%emt 0:16:30]} ({Predecessor:} 11... Ng5 12. f3 Qf6 13. a4 Nc6 14. f4 Nf7 15. Ba3 d6 16. Rb1 Na5 17. Nf3 Rfe8 18. Bb2 Rab8 {½-½ (65) Bodorkos,F (1818)-Saghy,K (1829) Hungary 2004}) 12. d5 {[%emt 0:11:30] [#]} (12. Bxe4 $15 fxe4 13. Qxe4) 12... Na5 $1 $17 {[%emt 0:02:30]} 13. Nf3 {[%emt 0:08:30] Black is clearly better.} exd5 {[%emt 0:15:30] Black is much more active. The white rooks are badly placed.} 14. cxd5 {[%emt 0:00:30]} Bxd5 {[%emt 0:01:30]} 15. c4 {[%emt 0:00:00]} Bb7 {[%emt 0:00:30]} 16. Bb2 {[%emt 0:00:00]} Qe7 {[%emt 0:03:30]} 17. Rad1 {[%emt 0:00:30]} Rad8 {[%emt 0:05:30]} 18. Be2 {[%emt 0:03:30]} d6 {[%emt 0:08:30]} 19. g3 {[%emt 0:05:30]} Nc6 {[%emt 0:05:30] Pair of Knights!} 20. Ne1 {[%emt 0:03:00]} Ng5 {[%emt 0:02:30]} 21. h4 {[%emt 0:00:50]} Ne4 {[%emt 0:01:30]} 22. Nd3 {[%emt 0:04:27]} Ne5 {[%emt 0:08:05]} 23. Nf4 {[%emt 0:05:58]} (23. Nxe5 $142 dxe5 24. Rxd8 Rxd8 25. Rd1) 23... Ng4 {[%emt 0:07:38]} (23... g5 $142 24. hxg5 Bc6) 24. Qd3 {[%emt 0:00:41]} ({White should try} 24. Bf3) 24... Ngf6 {[%emt 0:03:49]} (24... Rde8 $142 25. Nd5 Qf7) 25. Kh2 {[%emt 0:01:01]} Ng4+ {[%emt 0:01:16]} 26. Kg1 {[%emt 0:00:09]} Ne5 {[%emt 0:02:36]} (26... Rde8 $17 27. Bf3 Qf7) 27. Nd5 {[%emt 0:00:29]} (27. Qc2 $1 $11) 27... Bxd5 {[%emt 0:00:45] Black converts the advantage convincingly.} 28. Qxd5+ {[%emt 0:00:02]} Kh8 {[%emt 0:00:31]} 29. Kg2 {[%emt 0:03:23]} (29. Ra1 $17 {was necessary.}) 29... Nf6 $36 {[%emt 0:00:45][%mdl 2048] Black is in control.} 30. Qd2 {[%emt 0:00:14] [#]} Nxc4 $1 {[%emt 0:00:59][%mdl 512]} 31. Bxf6 {[%emt 0:03:47]} Rxf6 {[%emt 0:00:11] Chess con chili.} 32. Qd5 {[%emt 0:00:18]} Ne5 {[%emt 0:00:40]} ({Weaker is} 32... Nxa3 33. Qa2 $15) 33. Rd2 {[%emt 0:00:04]} Qe6 {[%emt 0:00:53]} 34. Rfd1 {[%emt 0:00:41]} Qxd5+ {[%emt 0:00:27]} 35. Rxd5 {[%emt 0:00:02]} Nf7 {[%emt 0:00:33]} 36. Bc4 {[%emt 0:00:25]} g6 {[%emt 0:00:21]} 37. f3 {[%emt 0:00:18]} Kg7 {[%emt 0:00:22]} 38. R5d2 {[%emt 0:00:30]} Kf8 {[%emt 0:00:46]} 39. a4 {[%emt 0:00:07]} Ne5 {[%emt 0:00:58]} 40. Bb5 {[%emt 0:00:00]} Ke7 {[%emt 0:00:00]} 41. a5 {[%emt 0:05:34]} a6 {[%emt 0:11:25]} (41... bxa5 $2 42. Ra1 $19) 42. Bxa6 {[%emt 0:02:30]} Ra8 {[%emt 0:00:00]} ({But not} 42... bxa5 $2 43. Be2) 43. Be2 {[%emt 0:00:30]} bxa5 {[%emt 0:03:00][%cal Bb6a5,Ba5a4,Ba4a3][%mdl 32]} ({Not} 43... Rxa5 44. Rb1) 44. Rb1 {[%emt 0:01:30]} Ra7 {[%emt 0:00:30] Inhibits Rb7+.} 45. Rb8 {[%emt 0:00:30]} Rf8 {[%emt 0:03:00]} 46. Rb6 {[%emt 0:03:30]} Rd8 {[%emt 0:00:46]} 47. f4 {[%emt 0:00:30]} Nf7 {[%emt 0:02:32]} 48. Bc4 {[%emt 0:00:30]} (48. Ra2 $142) 48... a4 {[%emt 0:00:41][%cal Od6d5]} 49. Bd5 {[%emt 0:00:30]} Nh6 {[%emt 0:01:41]} 50. e4 {[%emt 0:02:30]} fxe4 {[%emt 0:02:59]} 51. Re2 {[%emt 0:02:30]} a3 {[%emt 0:00:19]} 52. Rxe4+ {[%emt 0:00:30]} Kf8 {[%emt 0:01:14] Strongly threatening ...a2.} 53. Ba2 {[%emt 0:00:46]} Re8 {[%emt 0:03:10]} 54. Rxe8+ {[%emt 0:00:14]} Kxe8 {[%emt 0:00:01]} 55. Rxd6 $2 {[%emt 0:00:30][%mdl 4096] Endgame KRB-KRN} (55. g4) 55... Rd7 {[%emt 0:01:01]} 56. Re6+ {[%emt 0:01:03]} Re7 {[%emt 0:00:14]} 57. Kf3 {[%emt 0:00:43]} Rxe6 {[%emt 0:00:07]} 58. Bxe6 {[%emt 0:00:01] KB-KN} Nf5 {[%emt 0:00:24]} 59. Ba2 {[%emt 0:00:20]} Ke7 {[%emt 0:01:27] And now ...Nd4+ would win.} 60. g4 {[%emt 0:00:59]} Nd4+ {[%emt 0:00:17]} 61. Ke4 {[%emt 0:00:11]} Nc2 {[%emt 0:00:23] ( -> ...Nb4)} 62. f5 {[%emt 0:04:32]} gxf5+ {[%emt 0:00:58] Black mates.} 63. Kxf5 {[%emt 0:00:23]} Nb4 {[%emt 0:00:11]} 64. Bc4 {[%emt 0:00:24]} a2 {[%emt 0:00:08]} 65. Bxa2 {[%emt 0:00:03]} Nxa2 {[%emt 0:00:04]} 66. Ke5 {[%emt 0:00:06]} Nb4 {[%emt 0:01:56]} 67. g5 {[%emt 0:00:17]} Kf7 {[%emt 0:00:12]} 68. h5 {[%emt 0:00:11]} Kg7 {[%emt 0:00:16]} 69. Ke4 {[%emt 0:00:16]} h6 {[%emt 0:01:10] Weighted Error Value: White=0.57/Black=0.20 (precise)} 0-1

[Event "Croatian 1A League 2022"]
[Site "Porec"]
[Date "2022.09.24"]
[Round "1.7"]
[White "Cheparinov, Ivan"]
[Black "Donchenko, Alexander"]
[Result "1-0"]
[ECO "B92"]
[WhiteElo "2686"]
[BlackElo "2639"]
[Annotator "TA"]
[PlyCount "124"]
[EventDate "2022.09.24"]
[EventType "team-tourn"]
[EventCountry "CRO"]
[SourceTitle "playchess.com"]
[Source "ChessBase"]
[SourceQuality "1"]
[TimeControl "40/5400+30:1800+30"]

{[%evp 16,124,16,9,41,29,33,24,25,28,33,0,0,0,0,7,16,0,0,0,0,0,0,0,23,21,29,21,31,26,26,26,29,6,5,6,7,0,0,0,0,0,9,6,20,23,28,10,10,0,22,22,162,162,179,179,179,179,179,167,167,167,179,175,216,216,250,237,250,252,304,242,1103,1035,1007,849,731,1133,1575,1072,1679,514,2045,1785,2056,1914,1675,1673,1067,1483,1279,998,803,481,1406,1536,1084,1416,1202,952,639,343,12840,12838,12833,6962,12842,12843,12843,12843,12846]} 1. e4 {[%emt 0:01:00]} c5 {[%emt 0:01:00]} 2. Nf3 {[%emt 0:00:00]} d6 {[%emt 0:00:00]} 3. d4 {[%emt 0:00:00]} cxd4 {[%emt 0:00:00]} 4. Nxd4 {[%emt 0:00:00]} Nf6 {[%emt 0:00:00]} 5. Nc3 {[%emt 0:00:00]} a6 {[%emt 0:00:00]} 6. Be2 {[%emt 0:00:30]} e5 {[%emt 0:01:30]} 7. Nb3 {[%emt 0:00:00]} Be7 {[%emt 0:00:30]} 8. O-O {[%emt 0:00:00]} O-O {[%emt 0:01:30]} 9. Qd3 {[%emt 0:00:30]} Nbd7 {[%emt 0:14:30] B92: Sicilian Najdorf: 6 Be2.} 10. a4 {[%emt 0:01:30]} b6 {[%emt 0:01:30]} 11. Bg5 {[%emt 0:13:30] [#]} h6 $146 {[%emt 0:02:30] White has an edge.} ({Predecessor:} 11... Bb7 12. Rfd1 Rc8 13. Bf3 Qc7 14. Be3 Rfe8 15. Rd2 Nf8 16. h3 Ne6 17. Qf1 Bf8 18. Rad1 Qb8 {1-0 (76) Kovalenko,I (2640)-Dziuba,M (2568) Chess.com INT 2017}) 12. Bxf6 {[%emt 0:03:30]} Nxf6 {[%emt 0:00:30]} 13. Bf3 {[%emt 0:02:30]} Be6 {[%emt 0:05:30]} 14. Rfd1 {[%emt 0:00:30]} Qd7 {[%emt 0:11:30]} 15. Nd2 {[%emt 0:02:30]} Rfc8 {[%emt 0:02:30]} 16. h3 {[%emt 0:06:30]} Qc6 {[%emt 0:04:30]} 17. Nf1 {[%emt 0:03:30]} Bc4 {[%emt 0:02:30]} 18. Qd2 {[%emt 0:01:30]} Bxf1 {[%emt 0:00:30]} 19. Kxf1 {[%emt 0:00:30]} b5 {[%emt 0:00:30]} 20. axb5 {[%emt 0:07:30]} axb5 {[%emt 0:00:00]} 21. Rxa8 {[%emt 0:00:00]} Rxa8 {[%emt 0:00:00]} 22. Nd5 {[%emt 0:00:00]} Nxd5 {[%emt 0:02:30]} 23. Qxd5 {[%emt 0:00:30]} Rc8 {[%emt 0:04:30][%cal Ba8c8,Bc8c6,Bc6b6,Bb6b4][%mdl 32]} 24. Qxc6 {[%emt 0:07:30]} Rxc6 $11 {[%emt 0:00:00][%mdl 4096] Endgame KRB-KRB} 25. c3 {[%emt 0:00:30]} b4 {[%emt 0:02:00]} 26. cxb4 {[%emt 0:00:30]} Rb6 {[%emt 0:00:30]} 27. Rc1 {[%emt 0:01:30]} Rxb4 {[%emt 0:00:30]} 28. Rc7 {[%emt 0:01:30]} Bg5 {[%emt 0:01:30]} 29. Be2 {[%emt 0:05:30]} d5 {[%emt 0:04:30]} (29... Rxe4 $2 30. Rc8+ Kh7 31. Bd3 $18) 30. exd5 {[%emt 0:00:30][%cal Be4d5,Bd5d6,Bd6d7][%mdl 32]} Rxb2 {[%emt 0:00:30]} 31. Bd3 {[%emt 0:09:30] Inhibits Rb1+. White wants to mate with Rc8+.} g6 {[%emt 0:01:30]} 32. g3 {[%emt 0:04:30]} Kg7 {[%emt 0:03:30]} 33. d6 {[%emt 0:01:30] Bc4 is the strong threat.} Bd8 {[%emt 0:03:30] [#] Loses the game.} (33... Rd2 $11 34. Bc4 Rxd6) 34. Bc4 $1 $18 {[%emt 0:00:30]} g5 {[%emt 0:06:30]} 35. Rxf7+ {[%emt 0:03:30]} Kg6 {[%emt 0:00:30]} 36. Rf8 {[%emt 0:03:30]} Bf6 {[%emt 0:09:48]} 37. d7 {[%emt 0:05:25][%cal Of8f6] White threatens Rxf6+! and mate.} Rd2 {[%emt 0:00:05]} 38. Be6 {[%emt 0:00:34]} Be7 {[%emt 0:00:54]} 39. Rf3 {[%emt 0:05:19]} e4 {[%emt 0:06:56] [#]} 40. Bf5+ $1 {[%emt 0:00:00]} Kg7 {[%emt 0:00:00]} 41. Rc3 {[%emt 0:02:12]} (41. Bxe4 Rxd7 42. Ke2 Rd4 $14) 41... Kf6 {[%emt 0:03:17]} 42. g4 {[%emt 0:00:30]} ({Less strong is} 42. Bxe4 Rxd7 43. Bf3 Rd2 $14) 42... Ke5 {[%emt 0:00:30]} 43. Rc8 {[%emt 0:05:30]} h5 $2 {[%emt 0:04:30]} (43... Rd1+ 44. Ke2 Rd6) 44. Re8 {[%emt 0:02:30]} hxg4 {[%emt 0:00:30]} 45. hxg4 {[%emt 0:00:30]} ({Weaker is} 45. Rxe7+ Kxf5 46. Ke1 Rd4 $11) 45... Kf6 {[%emt 0:00:30]} 46. Ke1 {[%emt 0:00:30]} Rd4 {[%emt 0:05:30]} 47. Ke2 {[%emt 0:01:30] Black must now prevent Ke3.} Kf7 {[%emt 0:00:00]} 48. Rc8 {[%emt 0:00:30] Hoping for Ke3.} Bf6 {[%emt 0:01:00]} 49. Ke3 {[%emt 0:00:30]} Rd6 {[%emt 0:01:30]} 50. Kxe4 {[%emt 0:00:30]} Kg7 {[%emt 0:00:30]} 51. Re8 {[%emt 0:03:30] And now Be6 would win.} Kf7 {[%emt 0:00:00] Against Be6+} 52. Ke3 {[%emt 0:01:30]} Bd4+ {[%emt 0:00:00]} 53. Ke2 {[%emt 0:00:00]} Bf6 {[%emt 0:00:30]} 54. Re4 {[%emt 0:01:00]} Kg7 {[%emt 0:00:30]} (54... Ra6 $142 55. Re8 Rd6) 55. f4 {[%emt 0:00:30]} gxf4 {[%emt 0:00:30]} 56. Rxf4 {[%emt 0:00:30]} Bg5 {[%emt 0:00:30]} 57. Rc4 {[%emt 0:00:30]} Kf6 {[%emt 0:00:30]} 58. Kf3 {[%emt 0:00:30]} Ke5 $2 {[%emt 0:00:30]} (58... Ke7 59. Ra4 Kf7) 59. Re4+ {[%emt 0:00:30] White is clearly winning.} Kd5 {[%emt 0:00:30]} 60. Re8 {[%emt 0:00:30] aiming for Rg8.} Kd4 {[%emt 0:01:30]} 61. Rg8 {[%emt 0:00:30]} Be7 {[%emt 0:00:30]} 62. Kf4 {[%emt 0:01:30]} Kd5 {[%emt 0:02:30] Weighted Error Value: White=0.13 (very precise) /Black=0.18 (very precise)} 1-0

[Event "Croatian 1A League 2022"]
[Site "Porec"]
[Date "2022.09.24"]
[Round "1.8"]
[White "Livaic, Leon"]
[Black "Hracek, Zbynek"]
[Result "1-0"]
[ECO "B45"]
[WhiteElo "2565"]
[BlackElo "2556"]
[Annotator "TA"]
[PlyCount "131"]
[EventDate "2022.09.24"]
[EventType "team-tourn"]
[EventCountry "CRO"]
[SourceTitle "playchess.com"]
[Source "ChessBase"]
[SourceQuality "1"]
[TimeControl "40/5400+30:1800+30"]

{[%evp 22,131,48,8,62,56,120,116,122,122,166,159,191,85,85,85,85,85,85,85,85,85,85,85,108,103,101,62,62,44,129,118,145,145,172,172,172,172,172,172,172,172,292,127,127,104,118,99,127,127,127,127,127,127,127,127,127,127,127,0,244,241,194,37,67,44,127,127,127,46,127,0,50,32,66,41,49,46,130,0,130,130,130,130,130,74,130,14,6,4,12,0,12,0,15,0,17,43,16,8,236,168,640,633,867,1066,3637,2772,4133,3677,2874,2432]} 1. e4 {[%emt 0:01:00]} c5 {[%emt 0:01:00]} 2. Nf3 {[%emt 0:00:00]} e6 {[%emt 0:00:30]} 3. d4 {[%emt 0:03:00]} cxd4 {[%emt 0:00:30]} 4. Nxd4 {[%emt 0:00:00]} Nf6 {[%emt 0:00:00]} 5. Nc3 {[%emt 0:00:00]} Nc6 {[%emt 0:00:00]} 6. Nxc6 {[%emt 0:01:30]} bxc6 {[%emt 0:00:30]} 7. e5 {[%emt 0:00:30]} Nd5 {[%emt 0:00:00]} 8. Ne4 {[%emt 0:00:00]} Qc7 {[%emt 0:00:00]} 9. f4 {[%emt 0:00:00]} Qb6 {[%emt 0:00:00]} 10. c4 {[%emt 0:00:30]} Bb4+ {[%emt 0:01:00]} 11. Ke2 {[%emt 0:00:30]} f5 {[%emt 0:00:00]} 12. Nf2 {[%emt 0:01:30]} (12. exf6 $5 Nxf6 13. Be3 $14) 12... Ne7 {[%emt 0:00:00] B45: Sicilian Four Knights.} (12... Ba6 $11) 13. Nd3 $14 {[%emt 0:14:30]} Bc5 {[%emt 0:04:30] Against Be3} ({Better is} 13... d5 $1 $14) 14. Nxc5 $16 {[%emt 0:01:30]} Qxc5 {[%emt 0:00:30] White is better.} 15. b3 {[%emt 0:02:30] [#]} a5 $146 {[%emt 0:01:30][%cal Oa5a4]} ({Predecessor:} 15... Qb6 16. Qd6 c5 17. Ba3 Ng6 18. Bxc5 Nxf4+ 19. Ke3 Qxd6 20. Bxd6 Ng6 21. b4 Bb7 {1-0 (38) Navara,D (2724)-Vocaturo,D (2615) Prague 2019}) 16. Be3 {[%emt 0:11:30]} Qb4 {[%emt 0:00:30]} 17. Qd6 {[%emt 0:24:30]} (17. a3 $1 $18 {[%cal Ra3b4] has better winning chances.} Qb8 18. g3) 17... Qxd6 {[%emt 0:01:30]} 18. exd6 {[%emt 0:00:00]} Ng8 {[%emt 0:00:00]} 19. Kd2 {[%emt 0:06:00]} Nf6 {[%emt 0:01:00]} 20. Bd3 {[%emt 0:00:30]} Rg8 {[%emt 0:07:30]} 21. h3 {[%emt 0:06:30][%cal Bh2h3,Bh3h4][%mdl 32]} h5 {[%emt 0:02:30] Inhibits g4.} 22. h4 {[%emt 0:11:11] White is much more active. The black rooks are badly placed.} c5 {[%emt 0:14:30]} 23. Bxc5 {[%emt 0:00:12]} Bb7 {[%emt 0:00:30]} 24. Rhe1 {[%emt 0:02:47]} Kf7 {[%emt 0:01:30]} 25. g3 {[%emt 0:00:18]} Rgc8 {[%emt 0:02:30]} (25... Ra6 $14) 26. Bd4 {[%emt 0:00:38]} Rc6 {[%emt 0:02:30]} 27. c5 {[%emt 0:00:41]} Ba6 {[%emt 0:05:30] Against Bb5} 28. Bxa6 {[%emt 0:01:18]} Raxa6 {[%emt 0:01:30]} 29. Bxf6 {[%emt 0:04:26]} gxf6 $18 {[%emt 0:00:30][%mdl 4096] Endgame KRR-KRR} 30. Rec1 {[%emt 0:02:59]} Rc8 {[%emt 0:05:30]} 31. a3 $1 {[%emt 0:00:09]} Rb8 {[%emt 0:00:30]} (31... Rca8 $142 32. Kc3 Rg8) 32. Rab1 {[%emt 0:01:13]} (32. b4 $18) 32... e5 $16 {[%emt 0:00:30]} 33. b4 {[%emt 0:01:10]} axb4 {[%emt 0:01:30]} 34. axb4 {[%emt 0:00:03]} ({Worse is} 34. Rxb4 Rba8 $11) 34... Ke6 {[%emt 0:03:30]} 35. Kc3 $1 {[%emt 0:00:54]} Ra4 {[%emt 0:12:30]} 36. Kc4 {[%emt 0:00:33]} Rb7 {[%emt 0:00:30]} 37. Rc3 {[%emt 0:01:15]} Rb8 {[%emt 0:00:30]} 38. Rb2 {[%emt 0:00:45]} Rb7 {[%emt 0:00:30]} 39. Rd3 {[%emt 0:00:23]} Rb8 {[%emt 0:00:30]} 40. Kc3 {[%emt 0:00:00]} (40. Rdd2 $16) 40... Rb7 $2 {[%emt 0:00:00]} (40... Ra1 $1 $11) 41. Rd1 $18 {[%emt 0:05:05]} Rb8 {[%emt 0:08:00]} 42. Rb3 $2 {[%emt 0:00:30] Against Ra3} (42. b5 $1 $18 {aiming for c6.} Rg8 43. Kb3) 42... Rc8 $14 {[%emt 0:05:30]} 43. Rd2 {[%emt 0:02:30]} Rb8 {[%emt 0:18:30]} (43... Ra1 $1 $14) 44. Rd3 {[%emt 0:07:47]} Rc8 {[%emt 0:04:30]} 45. Rb1 {[%emt 0:01:42]} (45. Kc4 $16) 45... Rb8 {[%emt 0:01:30]} (45... Ra2 $1 $14) 46. Rb2 {[%emt 0:04:11]} (46. Kc4 $16) 46... Rc8 {[%emt 0:08:57]} (46... Rb7 $11) 47. Kb3 {[%emt 0:00:29]} Rca8 {[%emt 0:00:05]} 48. Rb1 {[%emt 0:04:52]} Ra3+ {[%emt 0:02:38]} 49. Kc4 {[%emt 0:00:05] Rxa3 is the strong threat.} R3a4 {[%emt 0:00:04]} (49... Rxd3 $14 50. Kxd3 Kd5) 50. Kc3 {[%emt 0:07:39]} Rb8 $1 {[%emt 0:01:24]} 51. Rdd1 $1 {[%emt 0:00:05]} Ra3+ {[%emt 0:02:55]} 52. Rb3 {[%emt 0:00:04]} Ra4 {[%emt 0:00:08]} 53. Rd2 {[%emt 0:01:23]} (53. Kc4 $142) 53... Rba8 {[%emt 0:03:16]} (53... Rc8 $142) 54. fxe5 {[%emt 0:00:56]} ({White should try} 54. Kc4 $16) 54... fxe5 $11 {[%emt 0:00:03]} 55. Kc4 {[%emt 0:00:27]} Rb8 {[%emt 0:03:38]} 56. Re2 {[%emt 0:00:39]} Rb7 {[%emt 0:00:57]} 57. Rd2 {[%emt 0:00:54]} Rb8 {[%emt 0:00:06]} 58. Rbb2 {[%emt 0:00:33]} Rb7 {[%emt 0:00:50]} 59. Kc3 {[%emt 0:00:19] Black must now prevent Ra2.} Rb8 {[%emt 0:00:21]} 60. b5 {[%emt 0:01:34][%cal Bb4b5,Bb5b6,Bb6b7][%mdl 32] And now c6 would win.} Rc8 {[%emt 0:00:42] Inhibits c6. A mistake that costs the game.} (60... Ra3+ $11 61. Kc2 Ra5) 61. Kb3 $18 {[%emt 0:00:05]} Rg4 {[%emt 0:04:16] [#]} (61... Raa8) 62. c6 $1 {[%emt 0:00:58][%cal Bc5c6,Bc6c7][%mdl 32] White is clearly winning.} Rxg3+ {[%emt 0:02:01] [#]} 63. Kc2 $1 {[%emt 0:00:04] Hoping for c7.} e4 {[%emt 0:00:35]} 64. c7 {[%emt 0:00:07]} e3 {[%emt 0:00:31] [#]} 65. b6 $1 {[%emt 0:01:59]} exd2 {[%emt 0:00:17]} (65... Rg4 66. b7) 66. b7 {[%emt 0:00:02] Weighted Error Value: White=0.28 (precise) /Black=0.44} 1-0